{"text_format":"3","workbook":"xlsx","n_sheets":1,"sheets":["Sheet1"],"read":"whole","date_system":"1900"}

{"sheet":"Sheet1","index":0,"n_rows":465,"n_cols":5,"rows_kept":465,"merged":[[1,1,1,5],[2,1,2,4],[3,1,3,4],[5,1,5,4],[6,1,6,4],[8,1,8,4],[77,1,77,2],[162,1,162,4],[163,1,163,4],[164,1,164,4],[165,1,165,4],[166,1,166,4],[167,1,167,4],[169,0,169,4],[334,1,334,4],[335,1,335,4],[337,1,337,4],[391,1,391,4],[392,1,392,4],[393,1,393,4],[394,1,394,4],[395,1,395,4],[396,1,396,4],[397,1,397,4],[399,1,399,4],[455,1,455,2],[456,1,456,4],[457,1,457,4],[458,1,458,4],[459,1,459,4],[460,1,460,4],[461,1,461,4]]}
[" ","ANNEXURE B: SPECIFICATIONS "]
["•","NOTE: THE PRICE FOR EACH ITEM MUST BE TYPED IN THE WHITE CELLS. THE TOTAL FOR EACH SPECIALIZATION AND GRAND TOTAL FOR ALL SPECIALIZATIONS WILL ADD AUTOMATICALLY. A HARD COPY SHOULD BE SIGNED ON EACH PAGE AND THE NAME OF THE COMPANY COMPLETED IN THE SPACE PROVIDED. THE SIGNED HARD COPIES FORM PART OF THE BID DOCUMENTS TO BE SUBMITTED."]
["•","SUPPLY, DELIVERY AND INSTALLATION OF TOOLS AND EQUIPMENT FOR ELECTRICAL, MECHANICAL AND AUTOMOTIVE IN THE TEN (10) SELECTED SCHOOLS IN THE FREE STATE."]
["•","THE FREE STATE DEPARTMENT OF EDUCATION RESERVES THE RIGHT TO REDUCE QUANTITIES BASED ON THE AVAILABLITY OF FUNDS. BIDDERS SHOULD SUPPLY PRICING PER INDIVIDUAL ITEMS."]
["A","AUTOMOTIVE SCHOOLS"]
[1,"SENEKAL: EE Monese SS, Senekal"]
[2,"BLOEMFONTEIN: Kagisho Comprehensive Secondary School, Bloemfontein"]
[]
[null,"TOOLS AND EQUIPMENT TO BE DELIVERED TO EE MONESE SECONDARY SCHOOLS AS LISTED ABOVE "]
["A1","AUTOMOTIVE","QUANTITY","UNIT PRICE","TOTAL"]
["1.1","BRAKING SYSTEM TRAINING RIG WITH ABS",1,null,{"$f":"D11*C11","v":0}]
["1.2","ENGINE SIMULATOR (PETROL) 4 STROKE",1,null,{"$f":"D12*C12","v":0}]
["1.3","DIFFERENTIAL TRAINING SET",1,null,{"$f":"D13*C13","v":0}]
["1.4","GEARBOX TRAINING SET (AUTOMATIC)",1,null,{"$f":"D14*C14","v":0}]
[]
["A1","AUTOMOTIVE","QUANTITY","UNIT PRICE","TOTAL"]
["1.5","COMPRESSION TESTERS",2,null,{"$f":"D17*C17","v":0}]
["1.6","AIR LEAKAGE TESTER",2,null,0]
["1.7","SUSPENSION SIMULATOR",1,null,0]
["1.8","FUEL INJECTOR TESTER",1,null,0]
["1.9","MULTIMETER DIGITAL",15,null,0]
["1.10","TOOL TROLLEY SET MECHANICS 525PC",1,null,0]
["1.11","BRAKE BLEEDING KIT - Handheld Vacuum Pump: 2 x lengths of tubing;  8 Vacuum adapters; two long tube sections to interface to bleeder cup 120 mL or 4-1/2 fl oz. Brake fluid reservoir container.",2,null,{"$f":"D23*C23","v":0}]
["1.12","BALL JOINT REMOVAL KIT",2,null,{"$f":"D24*C24","v":0}]
["1.13","Piston Ring Service Tool",2,null,0]
["1.14","Enerpac Hydraulic Bearing Puller, BHP1752",2,null,0]
["1.15","Torque Wrench Sizes 1/4\", 3/8\", 1/2\"",2,null,0]
["1.16","12V/24V 40Amp Metal Trade Charge Trolley",2,null,0]
[]
[]
["A1","AUTOMOTIVE","QUANTITY","UNIT PRICE","TOTAL"]
["1.17","20L GREASE GUN",1,null,0]
["1.18","Autel Key Programmer & Diagnostic Tool - MaxiIM IM608 PRO -- G BOX2 - IMKPA & APB112",1,null,0]
["1.19","Feeler Gauge",5,null,0]
["1.20","Radiaot/water tank leak pressure Detector Kit",2,null,{"$f":"D35*C35","v":0}]
["1.21","FIRST AID KIT WALL MOUNTABLE",1,null,{"$f":"D36*C36","v":0}]
["1.22","TESTER, Tyre Presure Gauge",4,null,0]
["1.23","SAFETY SIGN SET OF 12",1,null,0]
["1.24","CALIPERS INSIDE 150MM LONG",5,null,0]
["1.25","CALIPERS INSIDE 250MM LONG",5,null,0]
["1.26","CALIPERS OUTSIDE 150MM LONG",5,null,0]
["1.27","CALIPERS OUTSIDE 250MM LONG",5,null,0]
["1.28","DRIFT PIN SET  (1.5, 2.5, 3, 4, 5, 6, 8mm x 150mm)",5,null,0]
[]
["A1","AUTOMOTIVE","QUANTITY","UNIT PRICE","TOTAL"]
["1.29","MICROMETER EXTERNAL, SET 0-100mm Set of 4",5,null,0]
["1.30","MICROMETER INTERNAL, SET SIZES: 5 – 30, 25 – 50, 50 – 75 & 75 – 100 mm ACCURACY: 0.01 mm",3,null,{"$f":"D47*C47","v":0}]
["1.31","OIL CAN 500ML",2,null,{"$f":"D48*C48","v":0}]
["1.32","TESTER DIAL GAUGE Size: 0.01mm",2,null,0]
["1.33","STRAIGHT EDGE, STEEL RULE 0,6M",5,null,0]
["1.34","VERNIER CALIPER, DIGITAL 200MM",5,null,0]
["1.35","WIRE WHEEL & BRUSH 115MM DIAMETER",2,null,0]
["1.36","BRUSH BANISTER TO CLEAN WORK TABLES",1,null,0]
["1.37","BLOCKS VEE AND CLAMPS 50MM DIA & 36MM SQ",1,null,0]
["1.38","ENGINE CRANE HOIST 3 TON",2,null,0]
["1.39","(500 kg) ENGINE SUPPORT BAR",1,null,0]
["1.40","ENGINE STAND 0.5 TON",2,null,{"$f":"D57*C57","v":0}]
[]
["A1","AUTOMOTIVE","QUANTITY","UNIT PRICE","TOTAL"]
["1.41","BABY ANGLE GRINDER+/-650W, 115mm Disk 600Watt",4,null,{"$f":"D60*C60","v":0}]
["1.42","MULTIMETER ANALOG",10,null,{"$f":"D61*C61","v":0}]
["1.43","NYLON HAND GLOVES",40,null,0]
["1.44","HAND WASH CREAM 20 LITRES",2,null,0]
["1.45","CAR BATTERIES",2,null,0]
["1.46","GOOGLES PLASTIC",30,null,0]
["1.47","Engine, 4 stroke, spark ignition, 125cc, lawn mower enginer",1,null,0]
["1.48","Engine, 4 stroke, spark ignition, but Air Cooled, for motor bike - on a Stand",1,null,{"$f":"D67*C67","v":0}]
["1.49","Engine, 4 stroke, spark ignition, 4 cylinder, +/-1400cc, caburator - with Gear Box and Battery",1,null,0]
["1.50","Engine, 4 stroke, compression (diesel), 4 cylinger",1,null,0]
["1.51","115mm Cutting Steel Disck 1mm",10,null,{"$f":"D70*C70","v":0}]
["1.52","John Bean Visualiner V2100 - 3D Wheel Aligner",1,null,0]
[]
["A1","AUTOMOTIVE","QUANTITY","UNIT PRICE","TOTAL"]
["1.53","Ramp Top Conversion for Wheel Aligner",1,null,0]
["1.54","Turn Tables set for the Four Post Lift to do wheel alignment",1,null,0]
["1.55","Auxilliary Jack 2T AIR/HYDRAULIC Pump",1,null,0]
["1.56","Delivery and installation",1,null,0]
[null,"SUB-TOTAL for ONE AUTOMOTIVE  (A1) including VAT, Delivery and Installation to ONE school",null,"TOTAL",{"$f":"SUM(E67:E77,E55:E66,E46:E54,E35:E43,E23:E34,E11:E22)","v":0}]
[]
[]
["A2","TOOLS AND EQUIPMENT TO BE DELIVERED TO KAGISHO COMPHREHENSIVE SECONDARY SCHOOL AS LISTED ABOVE ","QUANTITY","UNIT PRICE","TOTAL"]
["2.1","AIR COMPRESSOR 500L RECEIVER CAPACITY: 500l; MOTOR: 7.5hP 5.5kW 380V; MAX. PRESSURE(tank): 11 Bar; MAX. PRESSURE(pump): 11 Bar; FLOW: 10.7 litres per second.",1,null,{"$f":"D82*C82","v":0}]
["2.2","FOUR PILLAR CAR LIFT (4.1 ton 220v 5.3m Long Blue)",1,null,{"$f":"D83*C83","v":0}]
["2.3","WHEEL BALANCER",1,null,0]
[]
["A2","AUTOMOTIVE","QUANTITY","UNIT PRICE","TOTAL"]
["2.4","BENCH VICES: JAW WIDTH: 100mm; JAW OPENING: 125mm smooth surfact finish, powder coated, hardened steel jaws",10,null,0]
["2.5","BRAKING SYSTEM TRAINING RIG WITH ABS",1,null,0]
["2.6","ENGINE SIMULATOR (PETROL) 4 STROKE",1,null,0]
["2.7","DIFFERENTIAL TRAINING SET",1,null,0]
["2.8","GEARBOX TRAINING SET (AUTOMATIC)",2,null,0]
["2.9","COMPRESSION TESTERS",2,null,0]
["2.10","AIR LEAKAGE TESTER",2,null,{"$f":"D93*C93","v":0}]
["2.11","SUSPENSION SIMULATOR",1,null,{"$f":"D94*C94","v":0}]
["2.12","FUEL INJECTOR TESTER",1,null,0]
["2.13","TYRE CHANGER: MOTOR POWER: 1.1 kW; MOTOR: 230 V; AIR SUPPLY: 0.8-1.2 Mpa; RIM CLAMPING RANGE (EXTERNAL): 12”– 24”; RIM CLAMPING RANGE (INTERNAL): 14” – 26”; BEAD BREAKER FORCE: 2500 kg: MAX WHEEL Ø: 1100 mm; MAX WHEEL WIDTH: 381 mm.",1,null,0]
[]
[]
[]
["A2","AUTOMOTIVE","QUANTITY","UNIT PRICE","TOTAL"]
["2.14","MULTIMETER DIGITAL",15,null,0]
["2.15","TOOL TROLLEY SET MECHANICS 525PC",4,null,0]
["2.16","BRAKE BLEEDING KIT - Handheld Vacuum Pump: 2 x lengths of tubing;  8 Vacuum adapters; two long tube sections to interface to bleeder cup 120 mL or 4-1/2 fl oz. Brake fluid reservoir container.",2,null,0]
["2.17","BALL JOINT REMOVAL KIT",2,null,0]
["2.18","Piston Ring Service Tool",2,null,{"$f":"D105*C105","v":0}]
["2.19","Enerpac Hydraulic Bearing Puller, BHP1752",2,null,{"$f":"D106*C106","v":0}]
["2.20","Torque Wrench Sizes 1/4\", 3/8\", 1/2\"",2,null,0]
["2.21","12V/24V 40Amp Metal Trade Charge Trolley",4,null,0]
["2.22","20L GREASE GUN",2,null,0]
["2.23","Autel Key Programmer & Diagnostic Tool - MaxiIM IM608 PRO -- G BOX2 - IMKPA & APB112",1,null,0]
["2.24","Feeler Gauge",5,null,0]
[]
[]
["A2","AUTOMOTIVE","QUANTITY","UNIT PRICE","TOTAL"]
["2.25","BENCH GRINDER 220Volt, +/-0.52k/watt, Floor Mounted on Pedestal, D/E 2 x Wheels  minimum 200mm, one fine and one coarse",2,null,0]
["2.26","Radiaot/water tank leak pressure Detector Kit",2,null,0]
["2.27","FIRST AID KIT WALL MOUNTABLE",1,null,0]
["2.28","TESTER, Tyre Presure Gauge",4,null,{"$f":"D118*C118","v":0}]
["2.29","HIGH PRESSURE ENGINE WASHING MACHINE",1,null,{"$f":"D119*C119","v":0}]
["2.30","SAFETY SIGN SET OF 12",1,null,0]
["2.31","CALIPERS INSIDE 150MM LONG",5,null,0]
["2.32","CALIPERS INSIDE 250MM LONG",5,null,0]
["2.33","CALIPERS OUTSIDE 150MM LONG",5,null,0]
["2.34","CALIPERS OUTSIDE 250MM LONG",5,null,0]
["2.35","DRIFT PIN SET  (1.5, 2.5, 3, 4, 5, 6, 8mm x 150mm)",5,null,0]
["2.36","MICROMETER EXTERNAL, SET 0-100mm Set of 4",5,null,0]
["2.37","MICROMETER INTERNAL, SET SIZES: 5 – 30, 25 – 50, 50 – 75 & 75 – 100 mm ACCURACY: 0.01 mm",5,null,0]
["2.38","OIL CAN 500ML",4,null,0]
["2.39","TESTER DIAL GAUGE Size: 0.01mm",2,null,0]
["2.40","STRAIGHT EDGE, STEEL RULE 0,6M",5,null,0]
["2.41","VERNIER CALIPER, DIGITAL 200MM",2,null,0]
[]
["A2","AUTOMOTIVE","QUANTITY","UNIT PRICE","TOTAL"]
["2.42","WIRE WHEEL & BRUSH 115MM DIAMETER",2,null,0]
["2.43","BRUSH BANISTER TO CLEAN WORK TABLES",2,null,{"$f":"D135*C135","v":0}]
["2.44","BLOCKS VEE AND CLAMPS 50MM DIA & 36MM SQ",2,null,{"$f":"D136*C136","v":0}]
["2.45","CABINET STEEL DOUBLE DOOR",4,null,0]
["2.46","ENGINE CRANE HOIST 3 TON",1,null,0]
["2.47","(500 kg) ENGINE SUPPORT BAR",2,null,0]
["2.48","ENGINE STAND 0.5 TON",2,null,0]
["2.49","BABY ANGLE GRINDER+/-650W, 115mm Disk 600Watt",5,null,0]
["2.50","MULTIMETER ANALOG",10,null,0]
["2.51","NYLON HAND GLOVES",40,null,0]
["2.52","HAND WASH CREAM 20 LITRES",2,null,0]
["2.53","CAR BATTERIES",4,null,0]
[]
[]
["A2","AUTOMOTIVE","QUANTITY","UNIT PRICE","TOTAL"]
["2.54","GOOGLES PLASTIC",30,null,0]
["2.55","115mm Cutting Steel Disck 1mm",10,null,0]
["2.56","Engine, 4 stroke, spark ignition, 125cc, lawn mower enginer",4,null,0]
["2.57","Engine, 4 stroke, spark ignition, but Air Cooled, for motor bike - on a Stand",3,null,0]
["2.58","Engine, 4 stroke, spark ignition, 4 cylinder, +/-1400cc, caburator - with Gear Box and Battery",3,null,0]
["2.59","Engine, 4 stroke, compression (diesel), 4 cylinger",3,null,0]
["2.60","John Bean Visualiner V2100 - 3D Wheel Aligner",1,null,0]
["2.61","Ramp Top Conversion for Wheel Aligner",1,null,0]
["2.62","Turn Tables set for the Four Post Lift to do wheel alignment",1,null,0]
["2.63","Auxilliary Jack 2T AIR/HYDRAULIC Pump",1,null,{"$f":"D158*C158","v":0}]
[null,"SUB-TOTAL for ONE AUTOMOTIVE  (A2) including VAT, Delivery and Installation to ONE school",null,null,{"$f":"SUM(E158,E145:E157,E135:E144,E118:E134,E105:E117,E93:E104,E82:E92)","v":0}]
[null,"TOTAL for TWO AUTOMOTIVE  (A1 + A2) including VAT, Delivery and Installation to ONE school",null,null,{"$f":"E159+E78","v":0}]
[]
["B","MECHANICAL: WELDING AND METALWORK"]
[1,"BLOEMFONTEIN: Commtech Comprehensive Secondary School, Bloemfontein"]
[2,"BLOEMFONTEIN: Hodisa Technical School, Bloemfontein"]
[3,"SASOLBURG: Iketsetseng Comprehensive Secondary School, Zamdela"]
[4,"WELKOM: Leseding Technical High School, Thabong"]
[5,"QWAQWA: Makabelane Technical High School, Phuthaditjhaba"]
[6,"BOTSHABELO: Lenyora La Thuto Comprehensive Secondary School, Botshabelo"]
[]
["TOOLS AND EQUIPMENT TO BE DELIVERED TO THE SIX SCHOOLS AS LISTED ABOVE "]
["B1","MECHANICAL: WELDING AND METALWORK","QUANTITY","UNIT PRICE","TOTAL"]
["1.1","ANVILS MEDIUM SIZE 77 Kg",2,null,{"$f":"D172*C172","v":0}]
["1.2","EARMUFFS, Head phone type, pairs",40,null,{"$f":"D173*C173","v":0}]
["1.3","ARC WELDING ACCESSORY KIT",5,null,0]
["1.4","ARC WELDING LEATHER APRON",40,null,0]
["1.5","ARC WELDING LEATHER GLOVES, long sleeves, pairs",40,null,0]
["1.6","ARC WELDING LEATHER GLOVES, short sleeves, pairs",40,null,0]
["1.7","ARC WELDING HELMET, self-darkening",40,null,0]
["1.8","ARC WELDING HELMET, flip front",40,null,{"$f":"D179*C179","v":0}]
["1.9","ARC WELDING LEATHER SPATS, pairs",40,null,{"$f":"D180*C180","v":0}]
[]
[]
["B1","MECHANICAL: WELDING AND METALWORK","QUANTITY","UNIT PRICE","TOTAL"]
["1.10","AIR FILTER MASK, Double canister",20,null,0]
["1.11","CALIPER OUTSIDE,+/'250mm",10,null,{"$f":"D185*C185","v":0}]
["1.12","CLAMPSG 75mm",10,null,{"$f":"D186*C186","v":0}]
["1.13","CLAMPSG100mm",10,null,0]
["1.14","CLAMPSG150mm",10,null,0]
["1.15","CLAMPSG250mm x 200mm",10,null,0]
["1.16","CHALK LINE ,STANLEY",10,null,0]
["1.17","COLD CHISEL, +/-250mm long x 16 x 20mm tip",10,null,0]
["1.18","COLD CHISEL, round nose Set,+(10 x 20 X 200mm)",10,null,0]
["1.19","COLD CHISEL, variety shapes set Set, (Size: 5PC)",10,null,{"$f":"D193*C193","v":0}]
["1.20","COLD CHISEL, variety shapes set Set,-+/-150mm long (Size: 12PC)",10,null,{"$f":"D194*C194","v":0}]
[]
["B1","MECHANICAL: WELDING AND METALWORK","QUANTITY","UNIT PRICE","TOTAL"]
["1.21","DIVIDER , Sring calliper.+/-200mm",10,null,{"$f":"D197*C197","v":0}]
["1.22","DIVIDER , Sring calliper.+/-250mm",10,null,0]
["1.23","DIVIDER , Sring calliper.+/-300mm",10,null,0]
["1.24","DRESSER Emery wheel, Huntington type (Size No:0)",2,null,0]
["1.25","DRILL Portable  L/DUTY+/-13mm chuck (Size: 220V, 550W)",3,null,0]
["1.26","DRILL H/DUTY+/-16mm chuck (Size: 220V, 700W)",2,null,0]
["1.27","DRILL PRESS (Machine, Drill Press 16mm, \nMotor: 230 V @ 50 HZ 550 W; Travel of spindle: 80mm; Taper of spindle: MT#2; Drill Capacity: up to 16 mm; Speeds RPM: 210 to 2,580, 210 to 3,340; Swing: 330mm; Chuck size: 3 – 16 mm.)",2,null,0]
["1.28","DRILL BIT SHAPENER",2,null,{"$f":"D204*C204","v":0}]
["1.30","DRIFT PIN SET (Size: 1.5, 2.5, 3, 4, 5, 6, 8mm x 150mm)",2,null,{"$f":"D205*C205","v":0}]
["1.31","ELECTRIC ENGRAVER, etching,220V",2,null,{"$f":"D206*C206","v":0}]
["1.32","EXTENSION CABLE on DRUM 20m",2,null,{"$f":"D207*C207","v":0}]
[]
["B1","MECHANICAL: WELDING AND METALWORK","QUANTITY","UNIT PRICE","TOTAL"]
["1.29","DRILL BITS, high speed(Size: 25 Piece  1.0mm - 13.0mm x 0.5mm)",5,null,{"$f":"D210*C210","v":0}]
["1.33","FILE HAND BASTER, FLAT , +/-200mm",20,null,0]
["1.34","FILE HAND BASTER, FLAT , +/-300mm",20,null,0]
["1.35","FILE HAND BASTER, HALF ROUND , +/-300mm",20,null,0]
["1.36","FILE HAND BASTER,  ROUND , +/-250mm",20,null,0]
["1.37","FILE HAND BASTER,  ROUND , +/-300mm",20,null,{"$f":"D215*C215","v":0}]
["1.38","FILE HAND BASTER,  SQUARE , +/-250mm",20,null,{"$f":"D216*C216","v":0}]
["1.39","FILE HAND BASTER,  SQUARE , +/-300mm",20,null,0]
["1.42","FILE HAND 2nd  ROUND, +/-300mm",20,null,{"$f":"D218*C218","v":0}]
["1.43","FILE HAND 2nd  SQUARE, +/-300mm",20,null,{"$f":"D219*C219","v":0}]
["1.44","FILE HAND 2nd  Cut FLAT,+/-150mm",20,null,{"$f":"D220*C220","v":0}]
["1.45","FILE HAND 2nd  Cut FLAT,+/-300mm",20,null,{"$f":"D221*C221","v":0}]
[]
["B1","MECHANICAL: WELDING AND METALWORK","QUANTITY","UNIT PRICE","TOTAL"]
["1.40","FILE HAND 2nd CUT FLAT, +/-300mm",20,null,0]
["1.41","FILE HAND 2nd HALF ROUND, +/-300mm",20,null,0]
["1.46","FILE HAND 2nd Cut HALF ROUND,+/-300mm",20,null,0]
["1.47","FILE HAND 2nd  Cut  ROUND,+/-300mm",20,null,0]
["1.48","FILE HAND 2nd Cut SQUARE,+/-250mm",20,null,0]
["1.49","FILE HAND 2nd  Cut  SQUARE,+/-300mm",20,null,0]
["1.50","FILE HAND BASTER,  TRIANGULAR ,+/-115mm",20,null,0]
["1.52","FIRST AID KIT, Wall mountable 1Pc - Cotton wool 50g; 1Pcs - Adhesive tape; 1pair - M-Utility scissors; 2 Pcs - wooden splint; 1 Pc - Splint wadding; 2 Pkts - Gauze swab (5Pc); 1 Pkt - Gauze swab (100Pc); 4 pair - PVC gloves; 1 Pc - Tweezers; 1 Pc - Wound cleaner; 10 Pcs - Safety pins; 20 Pcs - Adhesive strips; 1 PC - Elastic fabric plaster; 4 Pc - Bandage 100mm; 4 Pc - Bandage 75mm; 4 Pc - Stretch bandage 75mm; 4 Pc - Stretch bandage 150mm; 2 Pairs - Mouth to mouth resuscitation device; 4 Pc - Arm slings; 1 Pc - Metal first aid box",1,null,{"$f":"D231*C231","v":0}]
["1.51","FIRE EXTIGUISHR ,9kg powder wall mounting",2,null,{"$f":"D232*C232","v":0}]
[]
["B1","MECHANICAL: WELDING AND METALWORK","QUANTITY","UNIT PRICE","TOTAL"]
["1.53","FIRST AID KIT, Mobile 1Pc - Triangular bandage; 1Pc - CPR face shield; 1Pcs - Adhesive tape; 4 Pcs - Cleansing wipes; 1pair - M-Utility scissors; 2 Pcs - Soap wipes; 2 Pcs - Emergency blanket; 2 Pcs - Antiseptic wipes; 1 Pc - Combine pad; 2 Pcs - Alcohol wipes; 2 Pkts - Gauze swab; 2 Pcs - Film dressing; 6 pair - PVC gloves; 1 Pc - Tweezers; 1 Pc - Eye pad; 1 Pkt - Rayon balls; 1 Pc - Cold pack; 8 Pcs - Elastic fabric plaster; 10 Pcs - Safety pins; 2 Pcs - First aid dressing; 20 Pcs - Adhesive strips; 2 Pcs - Bandage; 4 Pairs - Butterfly plasters; 4 Pcs - Adhesive plaster, KN; 1 Pc - Nylon bag 24 x 18 x 7.5cm",1,null,0]
["1.54","FULL FACE GRINDING SHIELD , Clear",40,null,0]
["1.55","GAS WELDING GOGGLES dark lenses",40,null,0]
["1.56"," SAFETY GOGGLES clear lenses",40,null,0]
["1.57","GRINDER ANGLE,LIGHT DUTY +/-650W,115mmdiameter disc",5,null,0]
["1.58","GRINDER ANGLE HEAVY  DUTY (Size: 220V, 230mm (2000Watt)",5,null,0]
["1.59","GRINDER BENCH,ELECTRICAL 380 V (MACHINE, GRINDER, FLOOR MOUNTED PEDESTAL, D/E EMERY, 250mm dia)",1,null,0]
["1.60","GRINDER CUT- OFF HEAVY  DUTY 380V",1,null,0]
["1.61","HACKSAW,+/-300 mm",20,null,{"$f":"D243*C243","v":0}]
[]
["B1","MECHANICAL: WELDING AND METALWORK","QUANTITY","UNIT PRICE","TOTAL"]
["1.62","POWERSAW (ELECTRICAL) (Motor: 1.1kW, Volt: 230V; Blade Size: 2 360 x 19 x 0.9mm; Cutting Capacity: Round Bar 90°: 205mm Square Bar 90°: 215 x 205mm Round Bar 45°: 143mm Square Bar 45°: 143 x 115mm)Horizontal bandsaw",1,null,0]
["1.63","HAMMER CLUB ,+/-2kg",8,null,0]
["1.64","HAMMER BALL PEEN +/500g",10,null,0]
["1.65","HAMMER BALL PEEN +/- 700 g",10,null,0]
["1.66","HAMMER BALL PEEN +/- 1kg",10,null,0]
["1.67","HAMMER BALL PEEN +/- 2kg",10,null,0]
["1.68","HAMMER SLEDGE+/- 3,6kg",6,null,0]
["1.69","INVETER WELDER (Duty Cycle: 40% @40 degrees; Main Voltage: 220V; Welding Current Range: 20-230amps)",10,null,0]
["1.70","INVETOR PLASMA CUTTER (Prof CUT60H 380V)",2,null,0]
["1.71","MIG/CO2WELDER (Prof MIG/MMA 315A 380V) Excludes MIG torch and flow meter",2,null,0]
["1.72","OIL CAN Pressure type,500ml",4,null,0]
["1.73","PLIERS diagonal ,H/duty +/-150mm",20,null,0]
[]
["B1","MECHANICAL: WELDING AND METALWORK","QUANTITY","UNIT PRICE","TOTAL"]
["1.74","PLIERS Combination +/- 180 mm",20,null,0]
["1.75","PLIERS Combination +/- 200 mm",20,null,0]
["1.76","PLIERS Fencing +/-300mm",20,null,0]
["1.77","PLIERS long nose +/- 200 mm",20,null,0]
["1.78","PLIERS vice grip+/-250mm, Geodore",20,null,0]
["1.79","PLIERS water pump, universal, curve shape (Size: 315mm)",20,null,0]
["1.80","POP RIVETS APPARATUS(Pliers)+/-315mm",20,null,0]
["1.81","PUNCH & CHISEL SET  16piece",10,null,0]
["1.82","PUNCH , figure stamp (0-9) 6mm set",4,null,0]
["1.83","PUNCH , letter stamp (a-z) 6mm set",4,null,0]
["1.84","PUNCH CENTRE +/- 5x100mm",20,null,0]
["1.85","PUNCH PRICK , 2 x 100mm",10,null,0]
[]
[]
["B1","MECHANICAL: WELDING AND METALWORK","QUANTITY","UNIT PRICE","TOTAL"]
["1.86","SAFETY SIGNS SET of 12",2,null,0]
["1.87","SREWDRIVER FLAT: (150mm) blade",20,null,0]
["1.88","SCREWDRIVER TIP, +/-8x175mm blade",20,null,{"$f":"D277*C277","v":0}]
["1.89","SCREWDRIVER SET , 8 piece (combination)",5,null,{"$f":"D278*C278","v":0}]
["1.90","SCREWDRIVER SET , 6piece (cross & flat)",8,null,{"$f":"D279*C279","v":0}]
["1.91","SCROLL BENDER, (to form flat bar curve)",2,null,{"$f":"D280*C280","v":0}]
["1.92","SCRIBER ENGINEERS, +/-200mm long",20,null,{"$f":"D281*C281","v":0}]
["1.93","SLIDING BEVEL, Aluminium +/-350mmx+/-250mm stainless steel",20,null,{"$f":"D282*C282","v":0}]
["1.94","SPANNER ADJUSTABLE +/-150mm",20,null,0]
["1.95","SPANNER ADJUSTABLE +/-200mm",20,null,0]
["1.96","SPANNER ADJUSTABLE +/-250mm",20,null,0]
["1.97","SPANNER ADJUSTABLE +/-300mm",20,null,{"$f":"D286*C286","v":0}]
[]
[]
["B1","MECHANICAL: WELDING AND METALWORK","QUANTITY","UNIT PRICE","TOTAL"]
["1.98","SPANNER ADJUSTABLE +/-450mm",20,null,0]
["1.99","SPANNER in steel carry box (ring, open) (Size: 6-32mm)",20,null,0]
["1.100","STILTON WRENCH, (pipe wrench) +/-300mm",20,null,0]
["1.101","STRAIGHT EDGE, Steel rule ,0,6m",15,null,0]
["1.102","STRAIGHT EDGE, Steel rule , 1m",15,null,0]
["1.103","STRAIGHT EDGE, Steel rule , 3m",15,null,{"$f":"D295*C295","v":0}]
["1.104","SQUARE ENGINEERS, steel, try & mitre+/-150mm",20,null,0]
["1.105","SQUARE ENGINEERS, steel, try & mitre+/-250mm",20,null,0]
["1.106","SQUARE STEEL ,+/-600mmx 400mm",20,null,0]
["1.107","STEEL WIRE BRUSH,+/-125X50mm",20,null,0]
["1.108","STEEL WIRE BRUSH,+/-200X60mm",20,null,0]
["1.109","STEEL WIRE BRUSH, long handle",20,null,0]
[]
[]
["B1","MECHANICAL: WELDING AND METALWORK","QUANTITY","UNIT PRICE","TOTAL"]
["1.110","STEEL RULE, 300mm",20,null,0]
["1.111","TAPE MEASURING SURVEYORS (30m)",20,null,0]
["1.112","TAPE MEASURING, steel blade,3m",20,null,0]
["1.113","TAPE MEASURING, steel blade,5m",20,null,0]
["1.114","TAPS & DIE 6-20mm, set",5,null,0]
["1.115","TIN SNIPS: Bent to left jaws",20,null,0]
["1.116","TIN SNIPS: Bent to right  jaws",20,null,0]
["1.117","TIN SNIPS: Universal +/-300mm",20,null,0]
["1.118","TIN SNIPS: Straight jaws  +/-300mm",20,null,0]
["1.119","TIN SNIP BULLDOG SNIPS, +/-230mmx22mm",20,null,0]
["1.120","VENIER CALIPER, +/-250mm,0,02mm manual",10,null,0]
["1.121","VENIER CALIPER, +/-200mm,0,02mm digital",10,null,0]
[]
[]
["B1","MECHANICAL: WELDING AND METALWORK","QUANTITY","UNIT PRICE","TOTAL"]
["1.122","VICE ENGINEERS, DRILL CROSS+/-150mm jaws",6,null,0]
["1.123","WELDING SCREEN, UV resistant 3x3m",16,null,0]
["1.124","WIRE WHEEL & BRUSH, 115mm diameter",2,null,0]
["1.125","SPOTWELDER WATER COOLED (RATED INPUT VOLTAGE: 380 V @ 50 hz; NO-LOAD VOLTAGE 3 V; INPUT CAPACITY: 25 KVA; DUTY CYCLE: 30%; APPLIED SPOT WELDING THICKNESS: 3 mm + 3 mm)",1,null,0]
["1.126","1.3 m Slip Roller Machine with stand",1,null,0]
["1.127","Guillotine Power driven 2000mm wide. Cut up to 3.5-4mm 380Volt.",1,null,0]
["1.128","Delivery and installation",1,null,0]
[null,"SUB-TOTAL for ONE MECHANICAL: WELDING AND METALWORK (B1) including VAT, Delivery and Installation to ONE school",null,null,{"$f":"SUM(E320:E326,E305:E316,E290:E301,E275:E286,E260:E271,E246:E257,E235:E243,E224:E232,E210:E221,E197:E207,E184:E194,E172:E180)","v":0}]
[null,"TOTAL for ALL MECHANICAL: WELDING AND METALWORK (B1) including VAT, Delivery and Installation to SIX schools listed above",null,null,{"$f":"E327*6","v":0}]
[]
[]
[]
[]
[]
["C","ELECTRICAL TECHNOLOGY: DIGITAL SYSTEMS"]
[1,"SASOLBURG: Iketsetseng Comprehensive Secondary School, Zamdela"]
[2,"QWAQWA: Makabelane Technical High School, Phuthaditjhaba"]
[]
[null,"TOOLS AND EQUIPMENT TO BE DELIVERED TO THE TWO SCHOOLS AS LISTED ABOVE "]
["C1","ELECTRICAL TECHNOLOGY: DIGITAL SYSTEMS","QUANTITY","UNIT PRICE","TOTAL"]
["1.1","DATS (ADVANCED ELECTRONIC TRAINER)",5,null,{"$f":"D340*C340","v":0}]
["1.2","Oscilloscope Digital",5,null,{"$f":"D341*C341","v":0}]
["1.3","Tester Diode & Transistor",5,null,0]
["1.4","Tester LCR Bridge",5,null,{"$f":"D343*C343","v":0}]
["1.5","Tester Multimeter",20,null,{"$f":"D344*C344","v":0}]
["1.6","Soldering Iron 120watt",20,null,0]
["1.7","Cabinet Steel 2doors",2,null,0]
["1.8","Screw driver set 8 piece",10,null,0]
["1.9","Spanners 6-36mm",5,null,0]
["1.10","Drill Electrical 13mm chuck Size: 220V, 550W",3,null,0]
["1.11","Drill Electrical 16mm chuck Size: 220V, 700W",3,null,{"$f":"D350*C350","v":0}]
[]
["C1","ELECTRICAL TECHNOLOGY: DIGITAL SYSTEMS","QUANTITY","UNIT PRICE","TOTAL"]
["1.12","Extension cable 3 core 20m",2,null,0]
["1.13","Soldering Iron 40watt",20,null,0]
["1.14","First Aid Kit mounted\n1Pc - Cotton wool 50g; 1Pcs - Adhesive tape; 1pair - M-Utility scissors; 2 Pcs - wooden splint; 1 Pc - Splint wadding; 2 Pkts - Gauze swab (5Pc); 1 Pkt - Gauze swab (100Pc); 4 pair - PVC gloves; 1 Pc - Tweezers; 1 Pc - Wound cleaner; 10 Pcs - Safety pins; 20 Pcs - Adhesive strips; 1 PC - Elastic fabric plaster; 4 Pc - Bandage 100mm; 4 Pc - Bandage 75mm; 4 Pc - Stretch bandage 75mm; 4 Pc - Stretch bandage 150mm; 2 Pairs - Mouth to mouth resuscitation device; 4 Pc - Arm slings; 1 Pc - Metal first aid box",1,null,0]
["1.15","Electric Engraver 220v",2,null,{"$f":"D356*C356","v":0}]
["1.16","Magnum 2000 General Purpose Soldering Iron And Station 50 Watt Consumption",15,null,{"$f":"D357*C357","v":0}]
["1.17","Pliers Combination 110mm",15,null,0]
["1.18","Pliers Crimping\nSize: Stripping wires: 0.5~5mm2, AWG 10-20; Crimping insulation terminals: 0.5-5mm2",15,null,0]
["1.19","Pliers Diagonal 110mm",15,null,0]
["1.20","Pliers Long nose 110mm",15,null,0]
["1.21","Ruler Steel 300mm",15,null,0]
[]
["C1","ELECTRICAL TECHNOLOGY: DIGITAL SYSTEMS","QUANTITY","UNIT PRICE","TOTAL"]
["1.22","Screwdriver Set 6piece",10,null,0]
["1.23","Scratch Awl 6.5 x 100mm",20,null,0]
["1.24","Solder Sucker",15,null,0]
["1.25","Spanner Adjustable 150mm",15,null,0]
["1.26","Stripper electric wire 200mm",15,null,{"$f":"D369*C369","v":0}]
["1.27","Square Engineer's 150mm",15,null,{"$f":"D370*C370","v":0}]
["1.28","Tester multimeter Digital",20,null,0]
["1.29","Utility knife",15,null,0]
["1.30","Function Generator",5,null,0]
["1.31","DC Power Supply",10,null,0]
["1.32","Jumping Wires",20,null,0]
["1.33","Isolation Transformers",5,null,0]
[]
["C1","ELECTRICAL TECHNOLOGY: DIGITAL SYSTEMS","QUANTITY","UNIT PRICE","TOTAL"]
["1.34","Encoder and Decoder Apparatus",5,null,0]
["1.35","Hot Glue Gun",5,null,0]
["1.36","Digital Logic Trainer",3,null,0]
["1.37","Bread broads",30,null,0]
["1.38","Safety googles for learners",20,null,{"$f":"D383*C383","v":0}]
["1.39","Bench Pedestal Drills 13mm; Motor: 220 V @ 50 hZ 350 W; RPM 580 RPM, 850 RPM, 1220 RPM, 1650 RPM, 2650 RPM (5 Speeds); CHUCK SIZE: 13 mm Key Chuck; SPINDLE TAPER: MT 2",1,null,{"$f":"D384*C384","v":0}]
["1.40","Delivery and installation",1,null,0]
[null,"SUB-TOTAL for ONE ELECTRICAL TECHNOLOGY: DIGITAL SYSTEMS  (C1) including VAT, Delivery and Installation to ONE school",null,"TOT AL",{"$f":"SUM(E383:E385,E369:E382,E356:E368,E343:E355,E340:E342)","v":0}]
[null,"TOTAL for ELECTRICAL TECHNOLOGY: DIGITAL SYSTEMS  (C1) including VAT, Delivery and Installation to TWO schools",null,"TOT AL",{"$f":"E386*2","v":0}]
[]
[]
[]
["D","ELECTRICAL TECHNOLOGY: ELECTRONICS"]
[1,"SENEKAL: EE Monese Secondary School, Senakal"]
[2,"BLOEMFONTEIN: Commtech Comprehensive Secondary School, Zamdela"]
[3,"BLOEMFONTEIN: Hodisa Technical High School, Bloemfontein"]
[4,"HARRISMITH: Lerato-Uthando Comprehensive Secondary School, Intabazwe"]
[5,"BETHLEHEM: Bethlehem Comprehensive Secondary School, Bethlehem"]
[6,"BOTSHABELO: Lenyora La Thuto Comprehensive Secondary School, Botshabelo"]
[7,"QWAQWA: Makabelane Technical High School, Phuthaditjhaba"]
[]
[null,"TOOLS AND EQUIPMENT TO BE DELIVERED TO THE SEVEN SCHOOLS AS LISTED ABOVE "]
["D1","ELECTRICAL TECHNOLOGY: ELECTRONICS","QUANTITY","UNIT PRICE","TOTAL"]
["1.1","DATS (ADVANCED ELECTRONIC TRAINER)",5,null,{"$f":"D402*C402","v":0}]
["1.2","Oscilloscope Digital",5,null,{"$f":"D403*C403","v":0}]
["1.3","Tester Diode & Transistor",5,null,0]
["1.4","Tester LCR Bridge",5,null,0]
["1.5","Tester Multimeter",20,null,0]
["1.6","Soldering Iron 120watt",20,null,0]
["1.7","Cabinet Steel 2doors",2,null,0]
["1.8","Screw driver set 8 piece",10,null,0]
[]
[]
["D1","ELECTRICAL TECHNOLOGY: ELECTRONICS","QUANTITY","UNIT PRICE","TOTAL"]
["1.9","Spanners 6-36mm",5,null,{"$f":"D413*C413","v":0}]
["1.10","Drill Electrical 13mm chuck Size: 220V, 550W",3,null,{"$f":"D414*C414","v":0}]
["1.11","Drill Electrical 16mm chuck Size: 220V, 700W",3,null,0]
["1.12","Extension cable 3 core 20m",2,null,0]
["1.13","Soldering Iron 40watt",20,null,0]
["1.14","First Aid Kit mounted\n1Pc - Cotton wool 50g; 1Pcs - Adhesive tape; 1pair - M-Utility scissors; 2 Pcs - wooden splint; 1 Pc - Splint wadding; 2 Pkts - Gauze swab (5Pc); 1 Pkt - Gauze swab (100Pc); 4 pair - PVC gloves; 1 Pc - Tweezers; 1 Pc - Wound cleaner; 10 Pcs - Safety pins; 20 Pcs - Adhesive strips; 1 PC - Elastic fabric plaster; 4 Pc - Bandage 100mm; 4 Pc - Bandage 75mm; 4 Pc - Stretch bandage 75mm; 4 Pc - Stretch bandage 150mm; 2 Pairs - Mouth to mouth resuscitation device; 4 Pc - Arm slings; 1 Pc - Metal first aid box",1,null,0]
["1.15","Electric Engraver 220v",2,null,0]
["1.16","Magnum 2000 General Purpose Soldering Iron And Station 50 Watt Consumption",15,null,0]
["1.17","Pliers Combination 110mm",15,null,0]
[]
["D1","ELECTRICAL TECHNOLOGY: ELECTRONICS","QUANTITY","UNIT PRICE","TOTAL"]
["1.18","Pliers Crimping\nSize: Stripping wires: 0.5~5mm2, AWG 10-20; Crimping insulation terminals: 0.5-5mm2",15,null,{"$f":"D424*C424","v":0}]
["1.19","Pliers Diagonal 110mm",15,null,{"$f":"D425*C425","v":0}]
["1.20","Pliers Long nose 110mm",15,null,0]
["1.21","Ruler Steel 300mm",15,null,0]
["1.22","Screwdriver Set 6piece",10,null,0]
["1.23","Scratch Awl 6.5 x 100mm",20,null,0]
["1.24","Solder Sucker",15,null,0]
["1.25","Spanner Adjustable 150mm",15,null,0]
["1.26","Stripper electric wire 200mm",15,null,0]
["1.27","Square Engineer's 150mm",15,null,0]
["1.28","Tester multimeter Digital",20,null,0]
[]
[]
["D1","ELECTRICAL TECHNOLOGY: ELECTRONICS","QUANTITY","UNIT PRICE","TOTAL"]
["1.29","Utility knife",15,null,{"$f":"D438*C438","v":0}]
["1.30","Function Generator",5,null,{"$f":"D439*C439","v":0}]
["1.31","DC Power Supply",10,null,0]
["1.32","Jumping Wires",20,null,0]
["1.33","Isolation Transformers",5,null,0]
["1.34","Encoder and Decoder Apparatus",5,null,0]
["1.35","Hot Glue Gun",5,null,0]
["1.36","Digital Logic Trainer",3,null,0]
["1.37","Bread broads",30,null,0]
["1.38","Safety googles for learners",20,null,0]
["1.39","Bench Pedestal Drills 13mm; Motor: 220 V @ 50 hZ 350 W; RPM 580 RPM, 850 RPM, 1220 RPM, 1650 RPM, 2650 RPM (5 Speeds); CHUCK SIZE: 13 mm Key Chuck; SPINDLE TAPER: MT 2",1,null,0]
[]
[]
[]
["D1","ELECTRICAL TECHNOLOGY: ELECTRONICS","QUANTITY","UNIT PRICE","TOTAL"]
[null,"SUB-TOTAL for ONE ELECTRICAL TECHNOLOGY: ELECTRONICS  (A1) including VAT, Delivery and Installation to ONE school",null,"TOTAL",{"$f":"SUM(E438:E448,E424:E434,E413:E421,E402:E409)","v":0}]
[null,"TOTAL for ELECTRICAL TECHNOLOGY: ELECTRONICS  (A1) including VAT, Delivery and Installation to SEVEN school",null,"TOTAL",{"$f":"E453*7","v":0}]
[]
[null,"GRAND TOTAL A1 + A2 + B1 + C1 + D1",null,"TOTAL",{"$f":"E454+E387+E328+E160","v":0}]
[]
[null,"ANY ENQUIRIES REGARDING TECHNICAL INFORMATION/SPECIFICATIONS MAY BE DIRECTED TO:"]
[null,"Contact person:       Mr TM Phutsisi   /   Mr M Thabanyane"]
[null,"Tel.:                         0768142298  / 0632946209"]
[null,"email:   curriculum.fet@fseducation.gov.za"]
[null,"APPROVED/NOT APPROVED"]
[null,"___________________________"]
[null,"ADV. TH MALAKOANE"]
[null,"ACCOUNTING OFFICER EDUCATION"]